bitfinex-derivatives/quotes_SOLF0:USTF0_20241010
["timestamp","ask_amount","ask_price","bid_price","bid_amount"]
[1728552637086,6.04,137.75,137.69,3.75932]
[1728552637389,3.6336,137.72,137.69,3.75932]
[1728552637977,3.6334,137.73,137.69,0.12502]
[1728552638486,3.6334,137.73,137.69,14.92932]
[1728552641196,3.6341,137.7,137.69,0.12502]
[1728552642503,6.04,137.74,137.69,11.29502]
[1728552642797,17.21,137.75,137.7,11.17]
[1728552643294,17.21,137.75,137.7,14.8041]
[1728552643295,3.6333,137.74,137.7,14.8041]
[1728552643593,11.17,137.75,137.7,14.8041]
[1728552644292,11.17,137.75,137.71,3.6338]
[1728552644789,12.6199,137.77,137.71,11.17]
[1728552644991,11.17,137.78,137.73,14.8033]
[1728552645190,17.21,137.78,137.73,14.8033]
[1728552645389,18.6158,137.8,137.75,11.17]
[1728552645612,11.17,137.79,137.75,11.17]
[1728552645989,3.6321,137.78,137.75,11.17]
[1728552646185,7.4458,137.8,137.71,6.04]
[1728552646186,1.52692,137.81,137.76,11.17]
[1728552646391,12.69692,137.81,137.76,11.17]
[1728552646899,3.6319,137.79,137.76,14.8024]
[1728552648288,3.6316,137.8,137.77,14.8021]
[1728552648488,3.6316,137.8,137.77,11.17]
[1728552649094,3.6316,137.8,137.77,14.8021]
[1728552649298,3.6316,137.8,137.77,11.17]
[1728552649899,0.12502,137.81,137.76,1.3532]
[1728552650211,0.12502,137.81,137.8,11.17]
[1728552650403,0.12502,137.81,137.8,6.04]
[1728552650711,0.12502,137.81,137.8,20.8415]
[1728552651099,0.12502,137.81,137.8,6.04]
[1728552653498,0.12502,137.87,137.8,17.21]
[1728552653816,0.12502,137.87,137.84,11.17]
[1728552654106,3.6299,137.86,137.84,11.17]
[1728552656105,0.12502,137.87,137.85,11.17]
[1728552656310,0.12502,137.87,137.86,14.7999]
[1728552656512,0.12502,137.87,137.86,3.6299]
[1728552659112,0.12502,137.87,137.85,5.0824]
[1728552659611,0.12502,137.87,137.85,22.4924]
[1728552662014,0.12502,137.87,137.86,3.6299]
[1728552665910,0.12502,137.87,137.86,5.94]
[1728552666615,0.12502,137.87,137.86,9.5699]
[1728552667112,0.12502,137.93,137.86,5.94]
[1728552667313,0.12502,137.93,137.88,17.41]
[1728552667915,3.75322,137.93,137.89,3.629]
[1728552668313,0.12502,137.93,137.9,23.35]
[1728552668611,0.12502,137.93,137.87,1.3396]
[1728552668612,0.12502,137.93,137.88,17.41]
[1728552668819,0.12502,137.93,137.89,5.94]
[1728552669114,3.6287,137.91,137.89,5.94]
[1728552669915,3.6285,137.92,137.89,5.94]
[1728552670312,0.12502,137.93,137.89,5.94]
[1728552670712,17.41,137.92,137.85,1.4524]
[1728552670910,17.41,137.92,137.86,5.94]
[1728552671421,17.41,137.92,137.86,9.5698]
[1728552671619,3.6291,137.9,137.86,9.5698]
[1728552671821,17.41,137.92,137.86,9.5698]
[1728552672010,0.12502,137.93,137.86,9.5698]
[1728552672208,3.6291,137.9,137.86,9.5698]
[1728552672416,0.12502,137.93,137.86,9.5698]
[1728552673330,3.629,137.9,137.86,9.5698]
[1728552674022,3.6291,137.89,137.86,9.5698]
[1728552675916,3.6286,137.91,137.87,3.6295]
[1728552676111,3.6286,137.91,137.86,5.94]
[1728552676418,3.6286,137.91,137.88,11.16]
[1728552676721,0.12502,137.93,137.9,11.16]
[1728552676917,0.12502,137.93,137.91,11.16]
[1728552677119,0.12502,137.93,137.92,11.16]
[1728552677721,0.12502,137.93,137.92,14.7883]
[1728552679128,186.62916094,137.97,137.95,11.16]
[1728552680330,190.25616094,137.97,137.95,11.16]
[1728552680521,190.25616094,137.97,137.94,9.5676]
[1728552680723,186.62916094,137.97,137.94,5.94]
[1728552681924,3.6269,137.98,137.94,5.94]
[1728552682730,3.6269,137.98,137.94,9.5677]
[1728552683030,3.6273,137.96,137.94,5.94]
[1728552683328,0.12502,137.99,137.93,5.94]
[1728552684027,3.6274,137.96,137.93,9.5679]
[1728552684430,3.6274,137.96,137.93,5.94]
[1728552684626,3.6271,137.97,137.94,3.6276]
[1728552685426,3.6269,137.98,137.95,3.6273]
[1728552685627,0.12502,137.99,137.94,17.42]
[1728552686133,3.75162,137.99,137.96,3.6272]
[1728552687622,0.12502,137.99,137.97,3.6269]
[1728552689132,0.12502,137.99,137.97,5.016]
[1728552690830,0.12502,137.99,137.98,21.0467]
[1728552692333,0.12502,137.99,137.83,68.31392922]
[1728552692532,0.12502,137.99,137.93,3.6279]
[1728552692533,3.6271,137.97,137.93,3.6279]
[1728552692729,0.12502,137.99,137.92,23.18]
[1728552693137,3.6269,137.98,137.94,3.6277]
[1728552693537,3.6269,137.98,137.95,3.6274]
[1728552693840,3.75162,137.99,137.95,3.6274]
[1728552694132,3.75162,137.99,137.94,17.42]
[1728552694438,0.12502,137.99,137.96,3.6271]
[1728552694734,0.12502,137.99,137.95,5.76]
[1728552694934,3.75172,137.99,137.95,9.3874]
[1728552697141,0.12502,137.99,137.95,9.3874]
[1728552697345,3.6268,137.98,137.95,9.3874]
[1728552697838,0.12502,137.99,137.95,5.76]
[1728552698039,0.12502,137.99,137.92,21.0482]
[1728552698341,0.12502,137.99,137.94,5.76]
[1728552698739,3.6274,137.96,137.94,5.76]
[1728552704444,3.6274,137.96,137.94,16.91]
[1728552706050,0.12502,137.99,137.95,11.15]
[1728552706245,3.6269,137.98,137.95,11.15]
[1728552706950,3.75162,137.99,137.95,11.15]
[1728552707652,3.75162,137.99,137.96,3.6271]
[1728552709447,0.12502,137.99,137.97,14.777]
[1728552709841,0.12502,137.99,137.97,11.15]
[1728552710042,0.12502,137.99,137.98,14.7767]
[1728552710451,76.25772648,138.03,138.0,3.6261]
[1728552710655,79.88332648,138.03,138.02,11.15]
[1728552711059,76.25772648,138.03,138.02,11.15]
[1728552711656,3.6253,138.04,138.02,14.7757]
[1728552711857,3.6253,138.04,138.03,11.15]
[1728552712151,0.12502,138.05,138.03,11.15]
[1728552712353,3.75012,138.05,138.03,11.15]
[1728552712653,0.12502,138.05,138.02,3.6256]
[1728552712852,3.6252,138.04,138.02,3.6256]
[1728552714753,3.6252,138.04,138.01,21.0258]
[1728552714949,3.6252,138.04,138.01,21.0058]
[1728552715256,3.6252,138.04,138.02,3.6257]
[1728552715762,3.6252,138.04,138.01,17.38]
[1728552716257,3.6252,138.04,138.02,3.6257]
[1728552718158,3.6256,138.03,138.01,21.0059]
[1728552718348,0.12502,138.05,138.01,3.6259]
[1728552718552,0.12502,138.05,138.0,5.76]
[1728552718762,0.12502,138.05,138.0,7.1695]
[1728552718954,0.12502,138.05,138.01,3.6258]
[1728552719155,0.12502,138.05,138.01,17.4]
[1728552719663,0.12502,138.05,138.02,3.6256]
[1728552719861,0.12502,138.05,138.03,5.62]
[1728552720558,3.6252,138.04,138.03,5.62]
[1728552721459,3.6254,138.03,138.02,5.62]
[1728552721860,0.12502,138.05,138.02,5.62]
[1728552722056,3.75002,138.05,138.02,5.62]
[1728552722968,3.75002,138.05,138.02,9.2454]
[1728552723162,3.75002,138.05,138.02,5.62]
[1728552723761,3.75002,138.05,138.02,9.2456]
[1728552723966,3.75002,138.05,138.02,5.62]
[1728552724371,3.75002,138.05,138.02,9.2456]
[1728552725670,0.12502,138.05,138.03,3.6253]
[1728552727871,0.12502,138.05,138.02,5.62]
[1728552728171,0.12502,138.05,138.04,3.6252]
[1728552729477,6.37322215,138.11,138.07,3.6243]
[1728552729478,4.98212215,138.11,138.07,3.6243]
[1728552729770,3.6241,138.08,138.07,5.62]
[1728552731678,0.12502,138.11,138.07,5.62]
[1728552731872,3.624,138.09,138.07,5.62]
[1728552732490,3.624,138.09,138.08,11.14]
[1728552732978,3.6252,138.04,137.86,262.2638018]
[1728552733283,3.6252,138.04,138.03,11.14]
[1728552735878,1.4305,138.1,138.03,11.14]
[1728552736079,3.6251,138.05,138.03,11.14]
[1728552736974,3.6248,138.06,138.04,11.14]
[1728552737176,12.5705,138.1,138.06,11.14]
[1728552737682,3.6245,138.07,138.06,11.14]
[1728552738383,0.12502,138.11,138.06,11.14]
[1728552738581,0.12502,138.11,138.09,11.14]
[1728552738779,11.26502,138.11,138.06,1.4347]
[1728552738977,11.26502,138.11,138.07,11.14]
[1728552739377,3.6241,138.08,138.07,11.14]
[1728552742481,11.14,138.1,138.06,12.5747]
[1728552742688,3.6244,138.07,138.06,12.5747]
[1728552742985,3.6244,138.07,138.06,11.14]
[1728552743892,3.6243,138.08,138.06,11.14]
[1728552744585,3.6243,138.08,138.06,14.7646]
[1728552744884,3.6243,138.08,138.06,11.14]
[1728552745688,3.6239,138.09,138.06,11.14]
[1728552745880,0.12502,138.11,138.06,11.14]
[1728552746077,0.12502,138.11,138.07,11.14]
[1728552746282,3.6236,138.1,138.07,11.14]
[1728552746593,11.14,138.09,138.04,5.62]
[1728552746786,11.14,138.09,138.04,16.76]
[1728552747286,3.6249,138.06,138.04,16.76]
[1728552748088,3.6249,138.05,138.04,16.76]
[1728552748596,11.14,138.07,138.02,18.0808]
[1728552748784,3.6248,138.06,138.02,21.7064]
[1728552749087,4.87023334,138.1,138.03,11.14]
[1728552749386,3.625,138.05,138.03,11.14]
[1728552750585,11.14,138.07,138.03,11.14]
[1728552750786,3.6252,138.04,138.03,11.14]
[1728552751986,11.14,138.06,138.02,18.0808]
[1728552752186,11.14,138.07,138.03,11.14]
[1728552752992,3.6251,138.05,138.03,11.14]
[1728552755089,3.6252,138.04,138.03,11.14]
[1728552755684,3.6245,138.07,138.04,3.625]
[1728552755891,10.45230856,138.09,138.05,11.14]
[1728552756199,3.6246,138.07,138.05,11.14]
[1728552756587,3.6246,138.07,138.05,14.7649]
[1728552756891,3.624,138.09,138.06,11.14]
[1728552757097,3.624,138.09,138.07,11.14]
[1728552757291,0.12502,138.11,138.07,11.14]
[1728552757590,3.624,138.09,138.07,11.14]
[1728552757990,3.6237,138.1,138.08,14.7641]
[1728552758298,3.6237,138.1,138.09,11.14]
[1728552761407,3.74842,138.11,138.09,11.14]
[1728552762100,3.74842,138.11,138.09,14.7638]
[1728552762807,0.12502,138.11,138.1,14.7636]
[1728552762992,0.12502,138.11,138.08,5.58]
[1728552763196,0.12502,138.11,138.1,11.14]
[1728552767909,0.12502,138.11,138.09,3.6237]
[1728552768106,3.74832,138.11,138.1,11.14]
[1728552770000,0.12502,138.11,138.1,11.14]
[1728552770710,0.12502,138.11,138.1,14.7636]
[1728552773118,4.89299909,138.16,138.14,3.6225]
[1728552773317,0.12502,138.17,138.14,3.6225]
[1728552773318,0.12502,138.17,138.15,11.14]
[1728552773517,3.74692,138.17,138.15,11.14]
[1728552774420,0.12502,138.17,138.16,11.14]
[1728552774620,0.12502,138.17,138.16,16.72]
[1728552775924,0.12502,138.17,138.13,11.14]
[1728552776118,0.12502,138.17,138.13,16.72]
[1728552776315,3.6225,138.14,138.13,16.72]
[1728552777018,3.6224,138.15,138.13,16.72]
[1728552777419,0.12502,138.17,138.13,16.72]
[1728552777620,3.6225,138.14,138.13,16.72]
[1728552779625,0.12502,138.17,138.13,16.72]
[1728552779827,3.6224,138.15,138.13,16.72]
[1728552780024,0.12502,138.17,138.13,16.72]
[1728552780423,0.12502,138.17,138.12,1.3432]
[1728552780617,11.14,138.16,138.12,6.8232]
[1728552780825,3.6231,138.12,138.11,16.62]
[1728552781121,11.26502,138.17,138.11,16.62]
[1728552781521,11.14,138.16,138.11,16.62]
[1728552781826,11.14,138.15,138.1,16.62]
[1728552782026,0.12502,138.17,138.1,16.62]
[1728552782221,3.6229,138.13,138.1,16.62]
[1728552782422,11.14,138.14,138.1,16.62]
[1728552783121,3.6233,138.12,138.1,16.62]
[1728552783334,11.14,138.14,138.1,5.48]
[1728552783830,11.14,138.13,138.09,11.14]
[1728552784027,11.14,138.13,138.08,18.0719]
[1728552784528,3.6239,138.09,138.08,12.5919]
[1728552785221,11.14,138.13,138.08,12.5919]
[1728552785422,3.6237,138.1,138.08,12.5919]
[1728552786434,3.6239,138.09,138.08,12.5919]
[1728552786730,11.14,138.11,138.05,11.26502]
[1728552786919,3.6246,138.07,138.05,16.74502]
[1728552788927,15.96560876,138.11,138.05,11.26502]
[1728552789328,11.14,138.11,138.05,11.26502]
[1728552789530,3.6245,138.07,138.05,11.26502]
[1728552789922,3.6246,138.06,138.05,0.12502]
[1728552792733,3.6246,138.06,138.01,6.5036]
[1728552792734,11.14,138.06,138.01,6.9352]
[1728552793129,11.14,138.08,138.03,11.14]
[1728552793433,3.6251,138.05,138.03,11.14]
[1728552797935,11.14,138.07,138.03,11.14]
[1728552798236,11.14,138.07,138.02,14.7656]
[1728552799438,3.6252,138.04,138.02,11.14]
[1728552801536,3.6257,138.02,138.01,16.62]
[1728552803341,3.6256,138.03,138.01,16.62]
[1728552805546,3.6252,138.05,138.02,11.14]
[1728552805738,11.14,138.07,138.03,11.14]
[1728552805939,11.14,138.06,138.02,11.14]
[1728552806139,3.6256,138.03,138.02,11.14]
[1728552808039,3.6256,138.03,138.01,20.2459]
[1728552809049,3.6256,138.03,138.01,16.62]
[1728552809347,3.6257,138.02,138.0,17.9452]
[1728552809547,11.14,138.03,137.99,5.50502]
[1728552809746,11.14,138.02,137.99,0.12502]
[1728552809939,3.6262,138.0,137.99,0.12502]
[1728552813040,14.7662,138.0,137.99,0.12502]
[1728552813441,3.6262,138.0,137.99,0.12502]
[1728552813645,14.7662,138.0,137.99,0.12502]
[1728552816446,3.6262,138.0,137.99,0.12502]
[1728552816751,14.7662,138.0,137.99,0.12502]
[1728552818843,3.6278,137.94,137.93,0.12502]
[1728552819046,14.7678,137.94,137.93,0.12502]
[1728552822441,3.6291,137.89,137.88,1.4643]
[1728552822638,11.14,137.9,137.87,0.12502]
[1728552823444,3.6294,137.88,137.87,0.12502]
[1728552825649,3.6292,137.89,137.87,0.12502]
[1728552825955,17.42,137.93,137.87,0.12502]
[1728552826147,3.6285,137.92,137.89,3.6291]
[1728552826547,5.38,137.94,137.89,3.6291]
[1728552826752,3.6286,137.91,137.88,3.6293]
[1728552828049,22.8,137.94,137.87,3.75452]
[1728552829149,3.6287,137.91,137.87,0.12502]
[1728552829347,3.6287,137.91,137.88,3.6294]
[1728552829857,22.8,137.94,137.87,0.12502]
[1728552830158,3.6284,137.92,137.89,3.6291]
[1728552831151,22.8,137.94,137.87,0.12502]
[1728552831354,3.6286,137.91,137.88,3.6292]
[1728552832343,3.6291,137.89,137.87,0.12502]
[1728552832549,22.8,137.94,137.87,0.12502]
[1728552832850,5.38,137.94,137.87,0.12502]
[1728552833052,3.6287,137.91,137.88,3.6293]
[1728552833353,5.38,137.94,137.87,0.12502]
[1728552833954,3.6292,137.89,137.87,0.12502]
[1728552837959,3.6294,137.88,137.87,0.12502]
[1728552839468,81.68308018,137.94,137.87,0.12502]
[1728552839954,3.6286,137.91,137.88,3.6292]
[1728552840156,81.68308018,137.94,137.87,0.12502]
[1728552840550,3.6286,137.92,137.89,3.6291]
[1728552841553,3.6282,137.93,137.9,3.6287]
[1728552842063,3.628,137.94,137.9,3.6288]
[1728552842362,3.628,137.94,137.88,1.4629]
[1728552842558,17.42,137.95,137.91,3.6284]
[1728552842764,17.42,137.95,137.88,1.4629]
[1728552843760,3.6287,137.91,137.88,5.092]
[1728552843965,17.42,137.93,137.87,5.50502]
[1728552844163,22.8,137.93,137.87,5.50502]
[1728552844660,22.8,137.93,137.87,0.12502]
[1728552844661,17.42,137.92,137.87,0.12502]
[1728552844964,3.6294,137.88,137.87,0.12502]
[1728552845963,100.91957791,137.98,137.87,17.54502]
[1728552846267,17.42,137.96,137.87,22.92502]
[1728552846455,3.6279,137.94,137.91,3.6285]
[1728552847262,5.38,137.95,137.91,3.6285]
[1728552847456,3.6279,137.94,137.91,3.6285]
[1728552847654,17.42,137.96,137.89,1.4084]
[1728552847853,3.6281,137.93,137.89,2.7445]
[1728552848259,3.6281,137.93,137.91,3.6286]
[1728552848460,22.8,137.96,137.91,3.6286]
[1728552848663,5.38,137.96,137.9,5.38]
[1728552848963,76.28937791,137.98,137.91,17.42]
[1728552849168,3.6271,137.97,137.93,17.42]
[1728552849466,3.6271,137.97,137.94,3.6276]
[1728552850362,76.28937791,137.98,137.93,17.42]
[1728552850571,0.12502,137.99,137.97,3.6268]
[1728552850859,0.12502,137.99,137.95,17.42]
[1728552850860,3.75152,137.99,137.95,17.42]
[1728552851061,3.75152,137.99,137.96,3.6271]
[1728552851466,0.12502,137.99,137.97,17.42]
[1728552851870,0.12502,137.99,137.98,21.0467]
[1728552852770,3.6253,138.04,137.98,17.42]
[1728552853062,3.6253,138.04,137.99,5.38]
[1728552853268,3.6253,138.04,138.0,3.6262]
[1728552853462,3.6253,138.04,137.99,5.38]
[1728552854169,3.75002,138.05,138.01,17.42]
[1728552854965,3.75002,138.05,138.01,21.0458]
[1728552855270,3.6255,138.03,138.0,2.6911]
[1728552855461,0.12502,138.05,138.01,3.6258]
[1728552856063,0.12502,138.05,138.0,6.3172]
[1728552856462,3.6254,138.03,138.0,6.3172]
[1728552856961,3.6253,138.04,138.0,6.3172]
[1728552857364,0.12502,138.05,138.0,6.3172]
[1728552857579,3.6255,138.03,138.0,6.3172]
[1728552858165,0.12502,138.05,138.0,2.6911]
[1728552859375,3.6252,138.04,138.01,3.6258]
[1728552860667,0.12502,138.05,138.0,20.1111]
[1728552860875,0.12502,138.05,138.0,21.4689]
[1728552861769,0.12502,138.05,138.03,3.6252]
[1728552861972,0.12502,138.05,138.02,22.8]
[1728552862572,0.12502,138.05,138.04,3.6252]
[1728552863164,3.6239,138.09,138.05,3.6248]
[1728552863367,3.6239,138.09,138.05,5.38]
[1728552864174,3.6239,138.09,138.05,9.0048]
[1728552866472,0.12502,138.11,138.05,5.38]
[1728552866966,3.6246,138.06,138.05,5.38]
[1728552867374,17.54502,138.11,138.05,5.38]
[1728552867777,3.6245,138.07,138.05,5.38]
[1728552869379,3.6245,138.07,138.04,3.6251]
[1728552870379,3.624,138.09,138.03,9.0053]
[1728552870678,17.54502,138.11,138.03,9.0053]
[1728552871278,3.6246,138.07,138.03,9.0053]
[1728552872176,3.6246,138.07,138.03,5.38]
[1728552872377,3.6246,138.07,138.04,3.6251]
[1728552873279,3.6242,138.08,138.05,3.6247]
[1728552876174,0.12502,138.11,138.04,17.42]
[1728552876382,17.42,138.1,138.02,17.42]
[1728552876583,17.42,138.1,138.0,21.4689]
[1728552876772,17.42,138.1,138.02,5.38]
[1728552877079,5.38,138.09,138.02,22.8]
[1728552878172,3.6248,138.06,138.03,3.6254]
[1728552878475,3.6248,138.06,138.02,22.8]
[1728552878674,3.6248,138.06,138.03,3.6254]
[1728552879576,3.6245,138.07,138.04,3.6251]
[1728552879879,0.12502,138.11,138.04,17.42]
[1728552880081,0.12502,138.11,138.06,17.42]
[1728552880082,3.6238,138.1,138.06,17.42]
[1728552880282,0.12502,138.11,138.06,17.42]
[1728552880478,0.12502,138.11,138.05,5.38]
[1728552880682,3.6244,138.08,138.05,5.38]
[1728552882080,3.6244,138.08,138.05,9.0049]
[1728552882783,3.6239,138.09,138.06,21.0446]
[1728552882984,0.12502,138.11,138.06,17.42]
[1728552883383,3.624,138.09,138.06,21.0445]
[1728552883585,0.12502,138.11,138.06,17.42]
[1728552884084,3.6241,138.09,138.06,21.0446]
[1728552885084,0.12502,138.11,138.06,21.0446]
[1728552885085,0.12502,138.11,138.06,17.42]
[1728552885681,3.6237,138.1,138.07,3.6242]
[1728552885877,0.12502,138.11,138.07,3.6242]
[1728552886085,0.12502,138.11,138.07,17.42]
[1728552886379,0.12502,138.11,138.08,3.6239]
[1728552887092,0.12502,138.11,138.08,9.0039]
[1728552887284,0.12502,138.11,138.09,3.6238]
[1728552888486,0.12502,138.11,138.1,3.6236]
[1728552889497,0.12502,138.11,138.09,21.0438]
[1728552890093,0.12502,138.11,138.1,3.6236]
[1728552891000,3.74852,138.11,138.08,9.004]
[1728552891487,0.12502,138.11,138.08,22.8]
[1728552891793,0.12502,138.11,138.09,3.6239]
[1728552891987,0.12502,138.11,138.08,22.8]
[1728552892497,0.12502,138.11,138.09,3.6239]
[1728552892694,0.12502,138.11,138.08,22.8]
[1728552892889,0.12502,138.11,138.09,3.6236]
[1728552894285,0.12502,138.11,138.08,22.8]
[1728552895485,0.12502,138.11,138.03,3.63413394]
[1728552895690,0.12502,138.11,138.06,17.42]
[1728552895891,0.12502,138.11,138.07,1.4412]
[1728552896095,0.12502,138.11,138.09,3.6238]
[1728552896291,0.12502,138.11,138.08,22.8]
[1728552896492,0.12502,138.11,138.08,5.38]
[1728552897193,3.74852,138.11,138.08,9.004]
[1728552898401,3.6237,138.1,138.08,5.38]
[1728552899003,3.6239,138.09,138.08,5.38]
[1728552899699,3.6239,138.09,138.07,1.4412]
[1728552900508,3.74842,138.11,138.08,3.6241]
[1728552901000,3.74842,138.11,138.07,1.4412]
[1728552901190,3.74842,138.11,138.08,3.624]
[1728552902899,3.74842,138.11,138.07,1.4412]
[1728552902900,3.6237,138.1,138.07,5.0654]
[1728552903300,3.6237,138.1,138.07,1.4412]
[1728552903495,3.74842,138.11,138.08,3.624]
[1728552904199,0.12502,138.11,138.08,17.42]
[1728552904408,0.12502,138.11,138.1,21.0436]
[1728552905602,0.12502,138.11,138.1,17.42]
[1728552906304,0.12502,138.11,138.1,21.0436]
[1728552911203,0.12502,138.11,138.1,17.42]
[1728552911408,3.74832,138.11,138.09,5.38]
[1728552912308,0.12502,138.11,138.09,5.38]
[1728552912508,0.12502,138.11,138.09,9.0038]
[1728552913101,3.6239,138.09,138.07,6.8212]
[1728552913302,0.12502,138.11,138.07,6.8212]
[1728552913903,0.12502,138.11,138.04,3.57598884]
[1728552914208,0.12502,138.11,138.04,5.38]
[1728552914415,0.12502,138.11,138.05,17.42]
[1728552914714,0.12502,138.11,138.04,8.97648617]
[1728552914907,0.12502,138.11,138.07,17.42]
[1728552915109,3.74842,138.11,138.08,3.6241]
[1728552916204,3.6241,138.1,138.07,26.4247]
[1728552916418,0.12502,138.11,138.07,26.4247]
[1728552916710,0.12502,138.11,138.07,5.38]
[1728552917010,3.6245,138.08,138.07,5.38]
[1728552917802,3.6248,138.07,138.06,5.38]
[1728552918213,0.12502,138.11,138.03,21.05785726]
[1728552918506,17.54502,138.11,138.04,5.38]
[1728552918900,17.54502,138.11,138.03,21.05785726]
[1728552919211,17.54502,138.11,138.04,3.6254]
[1728552919616,3.6249,138.07,138.04,3.6254]
[1728552921208,3.6249,138.07,138.03,21.05785726]
[1728552921209,3.6252,138.06,138.03,5.38]
[1728552921404,17.42,138.1,138.03,5.38]
[1728552921602,5.38,138.09,138.02,5.38]
[1728552921811,6.8308,138.09,138.02,5.38]
[1728552922219,3.6257,138.04,138.02,5.38]
[1728552922513,3.6257,138.04,138.01,10.4264]
[1728552922715,3.6258,138.03,138.01,6.8002]
[1728552922909,17.42,138.08,138.01,1.4202]
[1728552923218,29.9682,138.09,137.99,5.50502]
[1728552923219,17.42,138.06,137.99,5.50502]
[1728552923807,17.42,138.06,137.99,3.75162]
[1728552924112,17.42,138.06,137.99,5.50502]
[1728552925017,3.6261,138.02,137.99,9.13162]
[1728552926516,3.6259,138.03,138.0,3.6266]
[1728552926713,5.38,138.06,138.02,17.42]
[1728552927318,5.38,138.06,137.99,5.50502]
[1728552927319,5.38,138.06,138.01,17.42]
[1728552927614,3.6255,138.04,138.01,21.0462]
[1728552928817,3.6259,138.03,138.0,3.6264]
[1728552933030,3.6256,138.04,137.99,22.98502]
[1728552933229,5.38,138.06,137.99,22.98502]
[1728552933729,3.6263,138.01,137.99,5.56502]
[1728552934030,5.38,138.06,137.99,5.56502]
[1728552934230,3.6264,138.01,137.99,5.56502]
[1728552934830,3.6264,138.01,137.99,0.12502]
[1728552936533,0.12502,138.11,138.0,40.28]
[1728552936725,0.12502,138.11,138.05,17.42]
[1728552936923,0.12502,138.11,138.07,17.42]
[1728552937122,0.12502,138.11,138.09,3.6241]
[1728552937726,0.12502,138.11,138.08,3.6243]
[1728552938831,0.12502,138.11,138.01,1.3833]
[1728552939129,0.12502,138.11,138.02,5.44]
[1728552939336,0.12502,138.11,138.04,17.42]
[1728552940531,3.624,138.1,138.07,3.6247]
[1728552941628,3.6242,138.09,138.06,3.6249]
[1728552942535,0.12502,138.11,138.04,17.42]
[1728552942728,3.6241,138.1,138.07,3.6247]
[1728552946536,3.74882,138.11,138.08,3.6244]
[1728552947135,3.6243,138.09,138.06,3.6249]
[1728552948236,3.6243,138.09,138.07,3.6247]
[1728552952333,3.6241,138.1,138.07,3.6247]
[1728552953743,0.12502,138.11,138.08,3.6244]
[1728552953945,3.74882,138.11,138.06,17.42]
[1728552954240,3.74882,138.11,138.08,3.6243]
[1728552955440,3.6241,138.1,138.07,3.6246]
[1728552956045,3.6242,138.09,138.07,3.6246]
[1728552956646,3.6241,138.1,138.08,3.6244]
[1728552959549,3.6241,138.1,138.05,24.1913]
[1728552959550,0.12502,138.11,138.09,3.624]
[1728552959745,0.12502,138.11,138.06,2.8495]
[1728552960252,0.12502,138.11,138.1,3.624]
[1728552964642,0.12502,138.11,138.08,9.0043]
[1728552965442,3.74882,138.11,138.08,9.0043]
[1728552965641,0.12502,138.11,138.08,5.38]
[1728552966353,3.74882,138.11,138.08,9.0043]
[1728552967750,3.74882,138.11,138.08,3.6243]